Cogmind - Beta 16 @@@ ROGUE MODE // 2026.01.26 @ 20:52:59 Player: delto Result: Destroyed by VT-BMR(R) with Subdweller Beam Cannon Performance ------------- Evolutions (0) 0 Regions Visited (3) 600 Robots Destroyed (3) 15 Value Destroyed (96) 96 Prototype IDs (0) 0 Alien Tech Used (0) 0 Bonus (-58) -58 TOTAL SCORE: 653 Bonus ------- Friendly Fire -58 Cogmind --------- Core Integrity 0/250 Matter 285/300 Energy 114/200 System Corruption 0% Temperature Warm (100) Movement Treading (160) Location -10/Subcaves Parts ------- > --- POWER (1) -------- Subdweller Power Source > --- PROPULSION (2) --- Light Treads Wheel > --- UTILITY (2) ------ Small Storage Unit Targeting Computer > --- WEAPON (2) ------- (None) > --- INVENTORY (8) ---- Light Treads Wheel Compact Matter Pod (150) Sensor Array Piercing Trap Peak State ------------ > --- POWER ------------ Ion Engine > --- PROPULSION ------- Light Treads Wheel > --- UTILITY ---------- Small Storage Unit Targeting Computer > --- WEAPON ----------- Makeshift Laser Barrage Gun > --- INVENTORY -------- Light Treads Wheel Compact Matter Pod Sensor Array Piercing Trap [Rating: 12] Favorites ----------- Power Ion Engine Engine Ion Engine Propulsion Light Treads Treads Light Treads Wheel Wheel Utility Small Storage Unit Storage Small Storage Unit Processor Targeting Computer Weapon EM Pulse Gun Energy Gun EM Pulse Gun Ballistic Gun Barrage Gun Launcher Subdweller Shrapnel Launcher Special Weapon Flamer Build | -11 -10 -10 -10 ------- Run | Yrd Mat Min Sub Slots Evolved . | . . . . Power . | . . . . Propulsion . | . . . . Utility . | . . . . Weapon . | . . . . Parts Attached 13 | 6 1 . 6 Power 2 | 1 . . 1 Engine 2 | 1 . . 1 Core . | . . . . Reactor . | . . . . Propulsion 2 | 2 . . . Treads 1 | 1 . . . Leg . | . . . . Wheel 1 | 1 . . . Hover . | . . . . Flight . | . . . . Utility 2 | 1 1 . . Device . | . . . . Storage 1 | 1 . . . Processor 1 | . 1 . . Hackware . | . . . . Protection . | . . . . Artifact . | . . . . Weapon 7 | 2 . . 5 Energy Gun 3 | 2 . . 1 Energy Cannon . | . . . . Ballistic Gun 1 | . . . 1 Ballistic Cannon . | . . . . Launcher 2 | . . . 2 Special Weapon 1 | . . . 1 Impact Weapon . | . . . . Slashing Weapon . | . . . . Piercing Weapon . | . . . . Special Melee Weapon . | . . . . Unidentified Prototypes . | . . . . Parts Lost 5 | . . . 5 Power 1 | . . . 1 Propulsion . | . . . . Utility . | . . . . Weapon 4 | . . . 4 Highest Loss Streak 4 | . . . 4 To Critical Strikes . | . . . . Average Backups 4 | . 3 6 5 Power . | . . . . Propulsion 1 | . 2 2 2 Utility 1 | . . 2 2 Weapon . | . . . . Tool/Special . | . . . . Unused Backups 10 | . . 1 9 Power . | . . . . Propulsion 2 | . . . 2 Utility 5 | . . 1 4 Weapon 2 | . . . 2 Tool/Special 1 | . . . 1 Average Slot Usage (%) 95 | . 91 100 94 Engine 13 | . 14 14 12 Treads 14 | . 14 14 14 Wheel 14 | . 14 14 14 Storage 14 | . 14 14 14 Processor 12 | . 5 14 14 Energy Gun 19 | . 28 28 10 Launcher 3 | . . . 7 Special Weapon 2 | . . . 6 Peak Build Rating 12 | 6 7 8 12 Average Rating 7 | 4 6 7 8 On Entrance 5 | . 6 7 8 Avg Prop Armor Cover (%) 11 | 11 11 11 11 Naked Turns . | . . . . Heaviest Build 20 | 14 14 14 20 Greatest Support 20 | 20 10 10 20 Greatest Overweight (x) 1 | 1 1 1 1 Average Overweight (x) . | . 1 1 . Largest Inventory Capacity 8 | 8 8 8 8 Average Capacity 7 | 7 8 8 8 Most Carried 8 | 2 4 8 8 Average Carried 5 | . 3 6 6 Final Capacity 8 | 8 8 8 8 Final Carried 8 | 2 4 8 5 Class Distribution -------------------- 100% | Mutant Dominant Class ---------------- Mutant | -10/Materials Mutant | -10/Mines Mutant | -10/Subcaves Resources | -11 -10 -10 -10 ----------- Run | Yrd Mat Min Sub Matter Collected 365 | 180 20 70 95 Remotely . | . . . . Salvage Created 111 | . 20 . 91 Parts 7 | . 3 . 4 Haulers Intercepted . | . . . . Recyclers Shooed . | . . . . Parts Field Recycled . | . . . . Retrieved Matter . | . . . . Parts Self-Destructed 3 | . . . 3 Prevented . | . . . . Parts Restored . | . . . . Kills | -11 -10 -10 -10 ------- Run | Yrd Mat Min Sub Combat Hostiles Destroyed 2 | . . . 2 Guns 1 | . . . 1 AOE 1 | . . . 1 Classes Destroyed 2 | . 1 . 1 Operator 1 | . 1 . . Subdweller 2 | . . . 2 Best Kill Streak 1 | . 1 . 1 Combat Bots Only 1 | . . . 1 Max Kills in Single Turn 1 | . 1 . 1 Gunslinging . | . . . . Exploded 1 | . . . 1 Melee . | . . . . Uniques/NPCs Destroyed . | . . . . Combat | -11 -10 -10 -10 -------- Run | Yrd Mat Min Sub Hostile Shots Fired 28 | . . . 28 Missed 4 | . . . 4 Hits 24 | . . . 24 Projectile 24 | . . . 24 Critical Strikes 1 | . . . 1 Damage Taken 731 | . . . 731 Core 251 | . . . 251 Absorbed by Shields . | . . . . Core Remaining (%) 100 | 100 . . . Volleys Fired 17 | . 1 . 16 Largest 2 | . 2 . 2 Hottest 90 | . 80 . 90 Shots Fired 28 | . 2 . 26 Gun 26 | . 2 . 24 Cannon . | . . . . Launcher 2 | . . . 2 Special . | . . . . Kinetic 7 | . . . 7 Thermal 10 | . . . 10 Explosive . | . . . . Electromagnetic 11 | . 2 . 9 Robot Hit Streak 20 | . 1 . 20 Robot Miss Streak 1 | . 1 . 1 Penetration Max . | . . . . Secondary Targets . | . . . . Shots Hit Robots 26 | . 1 . 25 Core Hits 7 | . 1 . 6 Critical Kills . | . . . . Critical Parts Destroyed . | . . . . Critical Strikes . | . . . . Melee Attacks . | . . . . Impact . | . . . . Slashing . | . . . . Piercing . | . . . . Sneak Attacks . | . . . . Combat Hostiles . | . . . . Follow-up Attacks . | . . . . Damage Inflicted 311 | . 18 . 293 Guns 119 | . 18 . 101 Cannons . | . . . . Explosions 192 | . . . 192 Melee . | . . . . Ramming . | . . . . Kinetic 192 | . . . 192 Thermal . | . . . . Explosive . | . . . . Electromagnetic 119 | . 18 . 101 Impact . | . . . . Slashing . | . . . . Piercing . | . . . . Highest Corruption . | . . . . Average Corruption . | . . . . Corruption Purged . | . . . . Corruption Blocked . | . . . . Overload Shots . | . . . . Overflow Damage 43 | . . . 43 Projectiles . | . . . . Explosions 43 | . . . 43 Melee . | . . . . Knockbacks . | . . . . Impact . | . . . . Kinetic . | . . . . Secondary . | . . . . Self-Inflicted Damage 108 | . . . 108 Shots 2 | . . . 2 Rammed . | . . . . Targets Rammed . | . . . . Kicked . | . . . . Crushed . | . . . . Highest Temperature 245 | . 18 . 245 Average Temperature 64 | . 12 . 78 Received Heat Transfer 460 | . . . 460 Siege Activations . | . . . . Martial Activations . | . . . . Shielding Activations . | . . . . Robots Disrupted . | . . . . Combat Hostiles . | . . . . Robots Corrupted . | . . . . Combat Hostiles . | . . . . Parts Fried 1 | . . . 1 Impact Corruptions . | . . . . Robots Melted . | . . . . Combat Hostiles . | . . . . Parts Melted . | . . . . Heat Transferred . | . . . . Parts Sabotaged . | . . . . Parts Stolen . | . . . . Parts Stripped . | . . . . Power Chain Reactions . | . . . . Alert | -11 -10 -10 -10 ------- Run | Yrd Mat Min Sub Maximum Alert Level . | . . . . Low Security (%) 100 | 100 100 100 . Level 1 . | . . . . Level 2 . | . . . . Level 3 . | . . . . Level 4 . | . . . . Level 5 . | . . . . High Security . | . . . . Max Security . | . . . . Peak Influence 5 | . 5 . . Initial . | . . . . Average . | . . . . Influence Increases 14 | . 14 . . Destroy 0b10 Robot/NC 5 | . 5 . . Successful Hack 9 | . 9 . . Influence Decreases 14 | . 14 . . Time Decay 14 | . 14 . . Squads Dispatched . | . . . . Investigation . | . . . . Extermination . | . . . . Reinforcement . | . . . . Assault . | . . . . Garrison . | . . . . Intercept . | . . . . Searches Triggered . | . . . . Construction Impeded . | . . . . Haulers Reinforced . | . . . . Active Scanning Responses . | . . . . Cargo Convoy Interrupts . | . . . . Stealth | -11 -10 -10 -10 --------- Run | Yrd Mat Min Sub Distress Signals . | . . . . Communications Jammed . | . . . . Distress Signals . | . . . . Times Spotted 5 | . 1 . 4 Peak Tracking Total 2 | . 1 . 2 Tactical Retreats . | . . . . Traps | -11 -10 -10 -10 ------- Run | Yrd Mat Min Sub Traps Triggered . | . . . . Indirectly . | . . . . Trap Hack Attempts . | . . . . Triggered . | . . . . Disarmed . | . . . . Reprogrammed . | . . . . Reused . | . . . . Traps Extracted . | . . . . Installed . | . . . . Triggered . | . . . . Most Traps Carried 1 | . . . 1 Machines | -11 -10 -10 -10 ---------- Run | Yrd Mat Min Sub Machines Disabled . | . . . . Max in Single Turn . | . . . . Machines Repaired . | . . . . Machines Dismantled . | . . . . Machines Sabotaged . | . . . . Overloaded Fab Kills . | . . . . Hacking | -11 -10 -10 -10 --------- Run | Yrd Mat Min Sub Machines Accessed 2 | . 2 . . Terminals 2 | . 2 . . Fabricators . | . . . . Repair Stations . | . . . . Recycling Units . | . . . . Scanalyzers . | . . . . Garrison Access . | . . . . Total Hacks 5 | . 5 . . Successful 3 | . 3 . . Failed 2 | . 2 . . Catastrophic . | . . . . Database Lockouts . | . . . . Manual 2 | . 2 . . Terminals 5 | . 5 . . Fabricators . | . . . . Repair Stations . | . . . . Recycling Units . | . . . . Scanalyzers . | . . . . Garrison Access . | . . . . Terminal Hacks 1 | . 1 . . Locate Traps 1 | . 1 . . Fabricator Hacks . | . . . . Repair Station Hacks . | . . . . Recycling Unit Hacks . | . . . . Scanalyzer . | . . . . Garrison Access Hacks . | . . . . Unauthorized Hacks 2 | . 2 . . Terminals 2 | . 2 . . Botnet 2 | . 2 . . Fabricators . | . . . . Repair Stations . | . . . . Recycling Units . | . . . . Scanalyzers . | . . . . Garrison Access . | . . . . Data Cores Recovered 1 | . 1 . . Used 1 | . 1 . . Hacking Detections 1 | . 1 . . Full Trace Events . | . . . . Feedback Events . | . . . . Feedback Blocked . | . . . . Robot Schematics Acquired . | . . . . Robots Built . | . . . . Authchips . | . . . . Time . | . . . . Total Robot Build Rating . | . . . . Part Schematics Acquired . | . . . . Parts Built . | . . . . Authchips . | . . . . Time . | . . . . Total Part Build Rating . | . . . . Part Studies Acquired . | . . . . Parts Repaired . | . . . . Time . | . . . . Parts Recycled . | . . . . Recycled Matter . | . . . . Retrieved Matter . | . . . . Retrieved Components . | . . . . Parts Scanalyzed . | . . . . Part Schematics Acquired . | . . . . Parts Damaged . | . . . . Bothacking | -11 -10 -10 -10 ------------ Run | Yrd Mat Min Sub Used RIF Installer . | . . . . Robots Hacked . | . . . . Non-combat . | . . . . Combat . | . . . . Robot Hacks Applied . | . . . . Relay Couplers Released . | . . . . Fabnet Peak Effective % . | . . . . Robots Rewired . | . . . . Allies Hacked . | . . . . Hacks Repelled . | . . . . Allies | -11 -10 -10 -10 -------- Run | Yrd Mat Min Sub Total Allies . | . . . . Largest Group . | . . . . Highest-Rated Group . | . . . . Highest-Rated Ally . | . . . . Total Orders . | . . . . Ally Attacks . | . . . . Total Damage . | . . . . Kills . | . . . . Allies Corrupted . | . . . . Allies Melted . | . . . . Intel | -11 -10 -10 -10 ------- Run | Yrd Mat Min Sub Active Infowar (turns) . | . . . . Robot Analysis Total . | . . . . Derelict Logs Recovered . | . . . . Drone Launches . | . . . . Drone Recoveries . | . . . . Exploration | -11 -10 -10 -10 ------------- Run | Yrd Mat Min Sub Turns Passed 632 | 83 93 202 254 Spaces Moved 577 | 79 91 207 200 Core 9 | 9 . . . Treads 8 | 2 . . 6 Legs . | . . . . Wheels 560 | 68 91 207 194 Hover . | . . . . Flight . | . . . . Fastest Speed 50 | 50 95 95 95 Average Speed 95 | 91 95 95 96 Slowest Speed 160 | 160 95 95 160 Overloaded Moves . | . . . . Propulsion Burnouts . | . . . . Robots Hopped . | . . . . Potential Cave-ins . | . . . . Cave-ins Triggered . | . . . . Exploration Rate (%) 16 | 4 18 37 8 Regions Visited 3 Branch Regions 2 Pre-discovered Areas . | . . . . Known Exits Taken . | . . . . Unknown Exits Taken 3 | 1 1 1 . Scrap Searched 5 | . . 1 4 Spaces Dug . | . . . . Terrain Destroyed 26 | . . . 26 Melee . | . . . . Projectile . | . . . . AOE 26 | . . . 26 Terrain Rammed . | . . . . Walls Destroyed . | . . . . Machines Disabled . | . . . . Actions | -11 -10 -10 -10 --------- Run | Yrd Mat Min Sub Total 631 | 86 94 212 239 Wait . | . . . . Move 574 | 78 90 206 200 Hop . | . . . . Pick Up 14 | 2 2 5 5 Fast Attach 12 | 6 1 . 5 Attach 1 | . . . 1 Detach 2 | . . . 2 Swap . | . . . . Drop 11 | . . 1 10 Fire 17 | . 1 . 16 Melee . | . . . . Ram . | . . . . Kick . | . . . . Crush . | . . . . Escape Stasis . | . . . . Rewire . | . . . . Trap . | . . . . Miscellaneous . | . . . . Route ------- -11/Scrapyard -10/Materials -10/Mines -10/Subcaves History --------- Turn | Location | Event 20 | -11/Scrapyard | Discovered new exit (range 16) 84 | -11/Scrapyard | Entered Materials 96 | -10/Materials | Discovered new exit (range 7) 177 | -10/Materials | Entered Mines 236 | -10/Mines | Discovered new exit (range 10) 312 | -10/Mines | Build established: Mutant 379 | -10/Mines | Entered Subcaves 380 | -10/Subcaves | Approached by a straggling Scientist 392 | -10/Subcaves | Shifting Twisted Machinery released Battle Cannon 434 | -10/Subcaves | Disturbed a concealed Subdweller 594 | -10/Subcaves | Disturbed a concealed Subdweller 615 | -10/Subcaves | Disturbed a concealed Subdweller 617 | -10/Subcaves | Core integrity fell below 50% 623 | -10/Subcaves | Ambushed by Subdweller buried in earth 629 | -10/Subcaves | Core integrity fell below 20% 633 | -10/Subcaves | Destroyed by VT-BMR(R) with Subdweller Beam Cannon Last Messages --------------- 00595_ Acquired 4 matter. 00595_ Subatomizers dissect the Sub. Beam Cannon. 00598_ Acquired 4 matter. 00601_ Ion Engine destroyed. 00604_ Acquired 4 matter. 00607_ Barrage Gun destroyed. 00615_ VT-BMR(R) angrily emerges from the Twisted Machinery. 00618_ Acquired Sub. Shrapnel Launcher. 00620_ Mak. Laser destroyed. 00620_ Destroyed Mak. Laser. 00622_ AF-KPP(R) affixes Scrap Shield Fragment to Scrap Shield. 00623_ AF-KPP(R) destroyed. 00623_ Sub. Shrapnel Launcher destroyed. 00623_ Destroyed Sub. Shrapnel Launcher. [Achievement: Do Not Disturb] 00624_ 44-6WR(R): "ARGHSUB!" 00626_ Acquired 35 matter. 00628_ Critical hit (Meltdown: +280). 00630_ Acquired Sub. Power Source. 00632_ Subatomizers dissect the Sub. Beam Cannon. Map ----- +----------------------------------------------------+ | ?????????????????????????????????????????????????? | | ?????????????????????????????????????????????????? | | ?????????????????????????????????????????????????? | | ?????????????????????????????????????????????????? | | ?????????????????????????????????????????????????? | | ?????????????????????????????????????????????????? | | ?????????????????????????????????????????????????? | | ?????????????????????????????????????????????????? | | ?????????????????????????????????????????????????? | | ?????????????????????????????????????????????????? | | ?????????????????????????????????????????????????? | | ?????????????????????????????????????????????????? | | ?????????????????????????????????????????????????? | | ?????????????????????????????????????????????????? | | ?????????????????????????????????????????????????? | | ?????????????????????????????????????????????????? | | ?????????????????????????????????????????????????? | | ?????????????????????????????????????????????????? | | ?????????????????????????####????????????????????? | | ?????????????????????##### ####?????????????????? | | ????????????????????## ; ; #;##????????????????? | | ????????????????????# ; R <###??????????????? | | ????????????????????# ; <##?????????????? | | ????????????????????# ##????????????? | | ????????????????????#; & $$$ ;#????????????? | | ????????????????????#; @ $ << #????????????? | | ????????????????????#; ] $$ < <#????????????? | | ?????#######????????#; ] <#????????????? | | ?????#"/[]"#????????## #;;; R&<#????????????? | | ?????# ##%%#?????????#<< # <<#????????????? | | ??##?#%&####?????????## <## <&#?????????????? | | # #"###="######???????#### c ##<<<####???????????? | | """#*## #????????### "###### ##??????????? | | ????#""!" ###????### " ### #??????????? | | ????# !& ##???# #??????????? | | ????# & #??## #??????????? | | ????## ## ## #??# ##??????????? | | ?##### ## ##??# ### ##???????????? | | ?# ## # ##?## #?# ##????????????? | | ## # "" ### #?# ##?????????????? | | # # ### " ## #### ##??????????????? | | # ###### # ### ##???????????????? | | #""##### #### ##?# ##????????????????? | | ## ## #??# #####??### #?????????????????? | | # ##??## ##????????####?????????????????? | | ## #########??????????????????????????????? | | ?## ] ##?????????????????????????????????? | | ??##### #?????????????????????????????????? | | ??????# # ##?????????????????????????????????? | | ??????## ### ##?????????????????????????????????? | +----------------------------------------------------+ Best States ------------- Heat Dissipation 25 Energy Generation 10 Energy Capacity 250 Matter Stores 300 Matter Capacity 300 Sight Range 16 Terrain Scan Density 10 Evasion (%) 44 Targeting Accuracy 5 Recoil Reduction 1 Item Schematics ----------------- None Robot Schematics ------------------ None Fabricated ------------ Nothing Repaired ---------- Nothing Studied --------- None Alien Tech Used ----------------- None Achievements -------------- Do Not Disturb Challenges ------------ None Game ------ Seed ShockBoreFrame Manual? 0 Play Time 00:07:32 Cumulative 100.5 hours Start 2026.01.26 @ 20:46:04 End 2026.01.26 @ 20:52:59 Sessions 1 Manual Loads 0 Difficulty Rogue Special Mode None Game No. 130 Rogue 130 Adventurer 0 Explorer 0 Win Type - Total 1 Types 1/0/0/0/0/0/0/0/0/0 Lore% 24 Gallery% 44 Achievement% 29 Wizard Run 0 Options --------- Layout 0 ASCII 0 Keyboard 0 Movement Mouse Keybinds 0 Fullscreen 1 Font 24/Smallcaps Map View 76x50 Zoom Use 0% Tactical HUD 1 Map Filters NONE Filters NONE Steam 1 RUN: 9068969e-ad00-4562-b6f4-0c0cb17bf463